fUSD/lending_fUSD_20250217
["ID","MTS","AMOUNT","RATE_DAILY","PERIOD"]
[353407328,1739817065974,-270.974476,0.00014438,2]
[353407329,1739817065984,-1331.58,0.00014438,2]
[353407330,1739817065992,-1912.36,0.00014438,2]
[353407331,1739817066002,-500.0,0.00014438,2]
[353407332,1739817066012,-1287.66,0.00014438,2]
[353407333,1739817066021,-562.46,0.00014438,2]
[353407334,1739817066030,-849.74,0.00014438,2]
[353407335,1739817066039,-500.0,0.00014438,2]
[353407336,1739817066049,-745.2,0.00014438,2]
[353407337,1739817066062,-566.99,0.00014438,2]
[353407338,1739817066071,-151.0,0.00014438,2]
[353407339,1739817066079,-549.59,0.00014438,2]
[353407340,1739817066089,-736.81,0.00014438,2]
[353407341,1739817066100,-1869.49,0.00014438,2]
[353407342,1739817066109,-917.79,0.00014438,2]
[353407343,1739817066117,-867.32,0.00014438,2]
[353407344,1739817066127,-500.0,0.00014438,2]
[353407345,1739817066137,-599.7,0.00014438,2]
[353407346,1739817066147,-992.25,0.00014438,2]
[353407347,1739817066158,-1248.25,0.00014438,2]
[353407348,1739817066167,-1034.43,0.00014438,2]
[353407349,1739817066177,-500.0,0.00014438,2]
[353407350,1739817066186,-770.08,0.00014438,2]
[353407351,1739817066197,-937.95,0.00014438,2]
[353407352,1739817066207,-292.18227314,0.00014438,2]
[353407353,1739817066216,-1106.33,0.00014438,2]
[353407354,1739817066225,-855.4,0.00014438,2]
[353407355,1739817066236,-766.63,0.00014438,2]
[353407356,1739817066246,-500.0,0.00014438,2]
[353407357,1739817066256,-871.51,0.00014438,2]
[353407358,1739817066265,-697.18,0.00014438,2]
[353407359,1739817066275,-560.97,0.00014438,2]
[353407360,1739817066285,-732.42,0.00014438,2]
[353407361,1739817066294,-1728.78,0.00014438,2]
[353407362,1739817066303,-712.45,0.00014438,2]
[353407363,1739817066314,-881.49,0.00014438,2]
[353407364,1739817066326,-860.0,0.00014438,2]
[353407365,1739817066337,-513.29,0.00014438,2]
[353407366,1739817066347,-797.71,0.00014438,2]
[353407367,1739817066356,-3858.73,0.00014438,2]
[353407368,1739817066366,-885.55,0.00014438,2]
[353407369,1739817066375,-1088.65,0.00014438,2]
[353407370,1739817066384,-500.0,0.00014438,2]
[353407371,1739817066393,-918.24,0.00014438,2]
[353407372,1739817066403,-1203.48,0.00014438,2]
[353407373,1739817066411,-1146.63,0.00014438,2]
[353407374,1739817066421,-793.62,0.00014438,2]
[353407375,1739817066431,-500.0,0.00014438,2]
[353407376,1739817066442,-1168.4,0.00014438,2]
[353407377,1739817066453,-757.31,0.00014438,2]
[353407378,1739817066462,-990.01,0.00014438,2]
[353407379,1739817066472,-790.25,0.00014438,2]
[353407380,1739817066481,-1217.01,0.00014438,2]
[353407381,1739817066491,-500.0,0.00014438,2]
[353407382,1739817066500,-718.94,0.00014438,2]
[353407383,1739817066510,-680.28,0.00014438,2]
[353407384,1739817066521,-1276.37,0.00014438,2]
[353407385,1739817066532,-500.0,0.00014438,2]
[353407386,1739817066542,-678.99,0.00014438,2]
[353407387,1739817066551,-500.0,0.00014438,2]
[353407388,1739817066560,-914.1,0.00014438,2]
[353407389,1739817066570,-854.97,0.00014438,2]
[353407390,1739817066579,-705.63,0.00014438,2]
[353407391,1739817066588,-1540.6,0.00014438,2]
[353407392,1739817066598,-917.85,0.00014438,2]
[353407393,1739817066608,-769.56,0.00014438,2]
[353407394,1739817066618,-151.0,0.00014438,2]
[353407395,1739817066627,-983.72,0.00014438,2]
[353407396,1739817066637,-1445.12,0.00014438,2]
[353407397,1739817066648,-779.26,0.00014438,2]
[353407398,1739817066658,-564.39,0.00014438,2]
[353407399,1739817066668,-390.376454,0.00014438,2]
[353407400,1739817066678,-626.04,0.00014438,2]
[353407401,1739817066688,-390.376454,0.00014438,2]
[353407402,1739817066697,-1013.2,0.00014438,2]
[353407403,1739817066707,-151.0,0.00014438,2]
[353407404,1739817066716,-500.0,0.00014438,2]
[353407405,1739817066726,-2061.01,0.00014438,2]
[353407406,1739817066735,-856.02,0.00014438,2]
[353407407,1739817066744,-500.0,0.00014438,2]
[353407408,1739817066754,-626.76,0.00014438,2]
[353407409,1739817066763,-151.0,0.00014438,2]
[353407410,1739817066773,-151.0,0.00014438,2]
[353407411,1739817066781,-151.0,0.00014438,2]
[353407412,1739817066791,-874.57,0.00014438,2]
[353407413,1739817066800,-151.0,0.00014438,2]
[353407414,1739817066811,-957.74,0.00014438,2]
[353407415,1739817066820,-567.59766905,0.00014438,2]
[353407416,1739817066830,-500.0,0.00014438,2]
[353407417,1739817066840,-2399.52,0.00014438,2]
[353407418,1739817066853,-932.0,0.00014438,2]
[353407419,1739817066863,-1149.24,0.00014438,2]
[353407420,1739817066872,-517.45976139,0.00014438,2]
[353407421,1739817066882,-500.0,0.00014438,2]
[353407422,1739817066891,-500.0,0.00014438,2]
[353407423,1739817066900,-154.414108,0.00014438,2]
[353407424,1739817066910,-729.63,0.00014438,2]
[353407425,1739817066919,-1026.51,0.00014438,2]
[353407426,1739817066930,-154.414108,0.00014438,2]
[353407427,1739817066940,-593.41,0.00014438,2]
[353407428,1739817066949,-1215.29,0.00014438,2]
[353407429,1739817066959,-646.83,0.00014438,2]
[353407430,1739817066968,-538.83,0.00014438,2]
[353407431,1739817066977,-902.35,0.00014438,2]
[353407432,1739817066987,-644.92,0.00014438,2]
[353407433,1739817066997,-1255.58,0.00014438,2]
[353407434,1739817067008,-500.0,0.00014438,2]
[353407435,1739817067019,-242.34874508,0.00014438,2]
[353407436,1739817067029,-1054.84,0.00014438,2]
[353407437,1739817067039,-737.27,0.00014438,2]
[353407438,1739817067052,-2118.94,0.00014438,2]
[353407439,1739817067062,-1255.01,0.00014438,2]
[353407440,1739817067072,-766.68,0.00014438,2]
[353407441,1739817067084,-542.03815182,0.00014438,2]
[353407442,1739817067094,-500.0,0.00014438,2]
[353407443,1739817067105,-548.79,0.00014438,2]
[353407444,1739817067115,-500.0,0.00014438,2]
[353407445,1739817067124,-1306.56,0.00014438,2]
[353407446,1739817067136,-649.85,0.00014438,2]
[353407447,1739817067145,-817.66,0.00014438,2]
[353407448,1739817067155,-500.0,0.00014438,2]
[353407449,1739817067164,-150.0,0.00014494,2]
[353407450,1739817067173,-204.0,0.000145,2]
[353407451,1739817067183,-507.34,0.0001452,2]
[353407452,1739817067192,-212.129909,0.0001452,2]
[353407453,1739817067203,-324.554653,0.0001452,2]
[353407454,1739817067212,-155.19643215,0.0001452,2]
[353407455,1739817067222,-500.0,0.0001452,2]
[353407456,1739817067231,-500.0,0.0001452,2]
[353407457,1739817067242,-500.0,0.0001452,2]
[353407458,1739817067251,-500.0,0.0001452,2]
[353407459,1739817067261,-637.31,0.0001452,2]
[353407460,1739817067270,-500.0,0.0001452,2]
[353407461,1739817067279,-500.0,0.0001452,2]
[353407462,1739817067289,-520.06,0.0001452,2]
[353407463,1739817067298,-500.0,0.0001452,2]
[353407464,1739817067307,-938.49,0.0001452,2]
[353407465,1739817067316,-151.0,0.0001452,2]
[353407466,1739817067326,-500.0,0.0001452,2]
[353407467,1739817067336,-151.0,0.0001452,2]
[353407468,1739817067346,-527.54,0.0001452,2]
[353407469,1739817067357,-500.0,0.0001452,2]
[353407470,1739817067366,-500.0,0.0001452,2]
[353407471,1739817067375,-500.0,0.0001452,2]
[353407472,1739817067385,-151.0,0.0001452,2]
[353407473,1739817067394,-703.03,0.0001452,2]
[353407474,1739817067403,-709.36,0.0001452,2]
[353407475,1739817067413,-500.0,0.0001452,2]
[353407476,1739817067423,-500.0,0.0001452,2]
[353407477,1739817067432,-675.42,0.0001452,2]
[353407478,1739817067441,-151.0,0.0001452,2]
[353407479,1739817067453,-500.0,0.0001452,2]
[353407480,1739817067462,-156.036517,0.0001452,2]
[353407481,1739817067472,-505.6,0.0001452,2]
[353407482,1739817067483,-404.5144746,0.0001452,2]
[353407483,1739817067492,-500.0,0.0001452,2]
[353407484,1739817067502,-500.0,0.0001452,2]
[353407485,1739817067512,-638.73,0.0001452,2]
[353407486,1739817067522,-151.0,0.0001452,2]
[353407487,1739817067531,-151.0,0.0001452,2]
[353407488,1739817067541,-571.56,0.0001452,2]
[353407489,1739817067551,-500.0,0.0001452,2]
[353407490,1739817067561,-628.39,0.0001452,2]
[353407491,1739817067571,-500.0,0.0001452,2]
[353407492,1739817067581,-500.0,0.0001452,2]
[353407493,1739817067590,-752.97,0.0001452,2]
[353407494,1739817067601,-500.0,0.0001452,2]
[353407495,1739817067610,-500.0,0.0001452,2]
[353407496,1739817067620,-500.0,0.0001452,2]
[353407497,1739817067630,-563.15,0.0001452,2]
[353407498,1739817067639,-500.0,0.0001452,2]
[353407499,1739817067650,-1009.3,0.0001452,2]
[353407500,1739817067660,-500.0,0.0001452,2]
[353407501,1739817067670,-500.0,0.0001452,2]
[353407502,1739817067680,-500.0,0.0001452,2]
[353407503,1739817067690,-500.0,0.0001452,2]
[353407504,1739817067701,-500.0,0.0001452,2]
[353407505,1739817067710,-500.0,0.0001452,2]
[353407506,1739817067720,-500.0,0.0001452,2]
[353407507,1739817067730,-500.0,0.0001452,2]
[353407508,1739817067739,-575.3806465,0.0001452,2]
[353407509,1739817067749,-565.46,0.0001452,2]
[353407510,1739817067759,-643.79,0.0001452,2]
[353407511,1739817067769,-1594.07,0.0001452,2]
[353407512,1739817067779,-303.46806587,0.0001452,2]
[353407513,1739817067789,-832.31,0.0001452,2]
[353407514,1739817067799,-1331.41,0.0001452,2]
[353407515,1739817067810,-500.0,0.0001452,2]
[353407516,1739817067820,-1191.93,0.0001452,2]
[353407517,1739817067830,-3245.66,0.0001452,2]
[353407518,1739817067839,-613.53,0.0001452,2]
[353407519,1739817067849,-500.0,0.0001452,2]
[353407520,1739817067858,-1602.85,0.0001452,2]
[353407521,1739817067868,-1174.07,0.0001452,2]
[353407522,1739817067879,-787.36,0.0001452,2]
[353407523,1739817067889,-597.6,0.0001452,2]
[353407524,1739817067899,-1331.58,0.0001452,2]
[353407525,1739817067913,-1912.36,0.0001452,2]
[353407526,1739817067923,-500.0,0.0001452,2]
[353407527,1739817067933,-1287.66,0.0001452,2]
[353407528,1739817067943,-562.46,0.0001452,2]
[353407529,1739817067954,-849.74,0.0001452,2]
[353407530,1739817067964,-370.80946587,0.0001452,2]
[353407531,1739817067974,-745.2,0.0001452,2]
[353407532,1739817067984,-566.99,0.0001452,2]
[353407533,1739817067993,-549.59,0.0001452,2]
[353407534,1739817068003,-736.81,0.0001452,2]
[353407535,1739817068013,-1869.49,0.0001452,2]
[353407536,1739817068023,-917.79,0.0001452,2]
[353407537,1739817068032,-867.32,0.0001452,2]
[353407538,1739817068043,-500.0,0.0001452,2]
[353407539,1739817068054,-599.7,0.0001452,2]
[353407540,1739817068064,-992.25,0.0001452,2]
[353407541,1739817068074,-1248.25,0.0001452,2]
[353407542,1739817068084,-1034.43,0.0001452,2]
[353407543,1739817068094,-500.0,0.0001452,2]
[353407544,1739817068106,-770.08,0.0001452,2]
[353407545,1739817068116,-937.95,0.0001452,2]
[353407546,1739817068130,-1106.33,0.0001452,2]
[353407547,1739817068140,-855.4,0.0001452,2]
[353407548,1739817068150,-766.63,0.0001452,2]
[353407549,1739817068160,-500.0,0.0001452,2]
[353407550,1739817068170,-871.51,0.0001452,2]
[353407551,1739817068180,-697.18,0.0001452,2]
[353407552,1739817068190,-560.97,0.0001452,2]
[353407553,1739817068200,-732.42,0.0001452,2]
[353407554,1739817068210,-1728.78,0.0001452,2]
[353407555,1739817068220,-712.45,0.0001452,2]
[353407556,1739817068230,-881.49,0.0001452,2]
[353407557,1739817068240,-513.29,0.0001452,2]
[353407558,1739817068250,-860.0,0.0001452,2]
[353407559,1739817068260,-797.71,0.0001452,2]
[353407560,1739817068270,-3858.73,0.0001452,2]
[353407561,1739817068280,-885.55,0.0001452,2]
[353407562,1739817068291,-1088.65,0.0001452,2]
[353407563,1739817068301,-500.0,0.0001452,2]
[353407564,1739817068311,-918.24,0.0001452,2]
[353407565,1739817068322,-1203.48,0.0001452,2]
[353407566,1739817068331,-1146.63,0.0001452,2]
[353407567,1739817068341,-793.62,0.0001452,2]
[353407568,1739817068350,-199.62497581,0.0001452,2]
[353407569,1739817068360,-1168.4,0.0001452,2]
[353407570,1739817068370,-757.31,0.0001452,2]
[353407571,1739817068380,-990.01,0.0001452,2]
[353407572,1739817068390,-790.25,0.0001452,2]
[353407573,1739817068399,-1217.01,0.0001452,2]
[353407574,1739817068409,-500.0,0.0001452,2]
[353407575,1739817068419,-718.94,0.0001452,2]
[353407576,1739817068429,-680.28,0.0001452,2]
[353407577,1739817068439,-1276.37,0.0001452,2]
[353407578,1739817068449,-500.0,0.0001452,2]
[353407579,1739817068459,-678.99,0.0001452,2]
[353407580,1739817068468,-500.0,0.0001452,2]
[353407581,1739817068478,-914.1,0.0001452,2]
[353407582,1739817068488,-854.97,0.0001452,2]
[353407583,1739817068498,-705.63,0.0001452,2]
[353407584,1739817068507,-1540.6,0.0001452,2]
[353407585,1739817068518,-917.85,0.0001452,2]
[353407586,1739817068529,-769.56,0.0001452,2]
[353407587,1739817068540,-983.72,0.0001452,2]
[353407588,1739817068550,-1445.12,0.0001452,2]
[353407589,1739817068561,-779.26,0.0001452,2]
[353407590,1739817068572,-564.39,0.0001452,2]
[353407591,1739817068583,-626.04,0.0001452,2]
[353407592,1739817068594,-1013.2,0.0001452,2]
[353407593,1739817068606,-500.0,0.0001452,2]
[353407594,1739817068616,-2061.01,0.0001452,2]
[353407595,1739817068626,-856.02,0.0001452,2]
[353407596,1739817068638,-500.0,0.0001452,2]
[353407597,1739817068648,-626.76,0.0001452,2]
[353407598,1739817068659,-874.57,0.0001452,2]
[353407599,1739817068669,-957.74,0.0001452,2]
[353407600,1739817068680,-500.0,0.0001452,2]
[353407601,1739817068691,-2399.52,0.0001452,2]
[353407602,1739817068704,-932.0,0.0001452,2]
[353407603,1739817068714,-1149.24,0.0001452,2]
[353407604,1739817068725,-500.0,0.0001452,2]
[353407605,1739817068735,-500.0,0.0001452,2]
[353407606,1739817068745,-729.63,0.0001452,2]
[353407607,1739817068756,-1026.51,0.0001452,2]
[353407608,1739817068767,-593.41,0.0001452,2]
[353407609,1739817068777,-1215.29,0.0001452,2]
[353407610,1739817068787,-646.83,0.0001452,2]
[353407611,1739817068797,-538.83,0.0001452,2]
[353407612,1739817068808,-902.35,0.0001452,2]
[353407613,1739817068819,-644.92,0.0001452,2]
[353407614,1739817068829,-1255.58,0.0001452,2]
[353407615,1739817068840,-500.0,0.0001452,2]
[353407616,1739817068850,-1054.84,0.0001452,2]
[353407617,1739817068861,-737.27,0.0001452,2]
[353407618,1739817068871,-2118.94,0.0001452,2]
[353407619,1739817068881,-1255.01,0.0001452,2]
[353407620,1739817068892,-766.68,0.0001452,2]
[353407621,1739817068903,-500.0,0.0001452,2]
[353407622,1739817068913,-548.79,0.0001452,2]
[353407623,1739817068923,-500.0,0.0001452,2]
[353407624,1739817068933,-1306.56,0.0001452,2]
[353407625,1739817068943,-649.85,0.0001452,2]
[353407626,1739817068956,-817.66,0.0001452,2]
[353407627,1739817068966,-500.0,0.0001452,2]
[353407628,1739817068976,-168.49,0.00014525,2]
[353407629,1739817068986,-440.05,0.00014594,2]
[353407630,1739817068995,-1550.82,0.00014594,2]
[353407631,1739817069005,-5000.000001,0.000146,3]
[353407632,1739817069015,-94135.37,0.000146,2]
[353407633,1739817069025,-212.129909,0.00014602,2]
[353407634,1739817069035,-324.554653,0.00014602,2]
[353407635,1739817069048,-372.91158667,0.00014602,2]
[353407636,1739817069057,-500.0,0.00014602,2]
[353407637,1739817069067,-500.0,0.00014602,2]
[353407638,1739817069077,-500.0,0.00014602,2]
[353407639,1739817069090,-637.31,0.00014602,2]
[353407640,1739817069100,-500.0,0.00014602,2]
[353407641,1739817069110,-500.0,0.00014602,2]
[353407642,1739817069120,-520.06,0.00014602,2]
[353407643,1739817069130,-500.0,0.00014602,2]
[353407644,1739817069140,-938.49,0.00014602,2]
[353407645,1739817069151,-500.0,0.00014602,2]
[353407646,1739817069161,-527.54,0.00014602,2]
[353407647,1739817069171,-500.0,0.00014602,2]
[353407648,1739817069181,-500.0,0.00014602,2]
[353407649,1739817069191,-322.08499942,0.00014602,2]
[353407650,1739817069201,-703.03,0.00014602,2]
[353407651,1739817069212,-709.36,0.00014602,2]
[353407652,1739817069222,-500.0,0.00014602,2]
[353407653,1739817069232,-500.0,0.00014602,2]
[353407654,1739817069243,-675.42,0.00014602,2]
[353407655,1739817069253,-500.0,0.00014602,2]
[353407656,1739817069263,-505.6,0.00014602,2]
[353407657,1739817069274,-500.0,0.00014602,2]
[353407658,1739817069479,-500.0,0.00014602,2]
[353407659,1739817069493,-638.73,0.00014602,2]
[353407660,1739817069504,-571.56,0.00014602,2]
[353407661,1739817069514,-500.0,0.00014602,2]
[353407662,1739817069525,-628.39,0.00014602,2]
[353407663,1739817069535,-500.0,0.00014602,2]
[353407664,1739817069545,-500.0,0.00014602,2]
[353407665,1739817069555,-752.97,0.00014602,2]
[353407666,1739817069564,-500.0,0.00014602,2]
[353407667,1739817069574,-500.0,0.00014602,2]
[353407668,1739817069584,-500.0,0.00014602,2]
[353407669,1739817069594,-563.15,0.00014602,2]
[353407670,1739817069604,-500.0,0.00014602,2]
[353407671,1739817069614,-1009.3,0.00014602,2]
[353407672,1739817069624,-500.0,0.00014602,2]
[353407673,1739817069633,-500.0,0.00014602,2]
[353407674,1739817069643,-500.0,0.00014602,2]
[353407675,1739817069653,-500.0,0.00014602,2]
[353407676,1739817069663,-500.0,0.00014602,2]
[353407677,1739817069673,-151.90157861,0.00014602,2]
[353407678,1739817069683,-500.0,0.00014602,2]
[353407679,1739817069693,-500.0,0.00014602,2]
[353407680,1739817069704,-565.46,0.00014602,2]
[353407681,1739817069714,-643.79,0.00014602,2]
[353407682,1739817069723,-1594.07,0.00014602,2]
[353407683,1739817069733,-832.31,0.00014602,2]
[353407684,1739817069743,-1331.41,0.00014602,2]
[353407685,1739817069753,-480.04407582,0.00014602,2]
[353407686,1739817069763,-1191.93,0.00014602,2]
[353407687,1739817069772,-3245.66,0.00014602,2]
[353407688,1739817069781,-613.53,0.00014602,2]
[353407689,1739817069791,-500.0,0.00014602,2]
[353407690,1739817069801,-1602.85,0.00014602,2]
[353407691,1739817069811,-1174.07,0.00014602,2]
[353407692,1739817069821,-787.36,0.00014602,2]
[353407693,1739817069831,-597.6,0.00014602,2]
[353407694,1739817069841,-1912.36,0.00014602,2]
[353407695,1739817069851,-1331.58,0.00014602,2]
[353407696,1739817069862,-500.0,0.00014602,2]
[353407697,1739817069872,-1287.66,0.00014602,2]
[353407698,1739817069882,-562.46,0.00014602,2]
[353407699,1739817069892,-849.74,0.00014602,2]
[353407700,1739817069902,-745.2,0.00014602,2]
[353407701,1739817069912,-566.99,0.00014602,2]
[353407702,1739817069923,-549.59,0.00014602,2]
[353407703,1739817069933,-736.81,0.00014602,2]
[353407704,1739817069943,-1869.49,0.00014602,2]
[353407705,1739817069953,-917.79,0.00014602,2]
[353407706,1739817069963,-867.32,0.00014602,2]
[353407707,1739817069972,-500.0,0.00014602,2]
[353407708,1739817069982,-599.7,0.00014602,2]
[353407709,1739817069992,-992.25,0.00014602,2]
[353407710,1739817070002,-1248.25,0.00014602,2]
[353407711,1739817070012,-1034.43,0.00014602,2]
[353407712,1739817070021,-500.0,0.00014602,2]
[353407713,1739817070031,-770.08,0.00014602,2]
[353407714,1739817070042,-937.95,0.00014602,2]
[353407715,1739817070052,-1106.33,0.00014602,2]
[353407716,1739817070065,-855.4,0.00014602,2]
[353407717,1739817070075,-766.63,0.00014602,2]
[353407718,1739817070084,-500.0,0.00014602,2]
[353407719,1739817070094,-871.51,0.00014602,2]
[353407720,1739817070106,-697.18,0.00014602,2]
[353407721,1739817070116,-560.97,0.00014602,2]
[353407722,1739817070125,-480.17496637,0.00014602,2]
[353407723,1739817070688,-252.24503363,0.00014602,2]
[353407724,1739817070699,-151.0,0.00014602,2]
[353407725,1739817070709,-37.51532276,0.00014602,2]
[353407726,1739817070722,-1691.26467724,0.00014602,2]
[353407727,1739817070732,-712.45,0.00014602,2]
[353407728,1739817070742,-389.30850342,0.00014602,2]
[353407729,1739817070754,-301.92197159,0.00014602,2]
[353407730,1739817070767,-190.25952499,0.00014602,2]
[353407731,1739817070778,-73.19014404,0.00014602,2]
[353407732,1739817070790,-77.80985596,0.00014602,2]
[353407733,1739817070800,-860.0,0.00014602,2]
[353407734,1739817070810,-513.29,0.00014602,2]
[353407735,1739817070820,-797.71,0.00014602,2]
[353407736,1739817070830,-1334.25811229,0.00014602,2]
[353407737,1739817070841,-2524.47188771,0.00014602,2]
[353407738,1739817070851,-885.55,0.00014602,2]
[353407739,1739817070861,-1088.65,0.00014602,2]
[353407740,1739817070870,-500.0,0.00014602,2]
[353407741,1739817070879,-918.24,0.00014602,2]
[353407742,1739817070889,-1203.48,0.00014602,2]
[353407743,1739817070899,-1146.63,0.00014602,2]
[353407744,1739817070908,-793.62,0.00014602,2]
[353407745,1739817070918,-1168.4,0.00014602,2]
[353407746,1739817070928,-757.31,0.00014602,2]
[353407747,1739817070937,-990.01,0.00014602,2]
[353407748,1739817070947,-790.25,0.00014602,2]
[353407749,1739817070958,-1217.01,0.00014602,2]
[353407750,1739817070968,-718.94,0.00014602,2]
[353407751,1739817070977,-500.0,0.00014602,2]
[353407752,1739817070986,-680.28,0.00014602,2]
[353407753,1739817070995,-8.51150205,0.00014602,2]
[353407754,1739817071027,-500.0,0.00013945,2]
[353407755,1739817071036,-682.38669399,0.00014191,2]
[353407756,1739817071052,-212.60330601,0.00014191,2]
[353407757,1739817071061,-177.24539194,0.00014602,2]
[353407758,1739817071073,-1090.61310601,0.00014602,2]
[353407759,1739817071082,-500.0,0.00014602,2]
[353407760,1739817071093,-443.91089245,0.00014602,2]
[353407761,1739817071105,-235.07910755,0.00014602,2]
[353407762,1739817071114,-341.33,0.00014602,2]
[353407763,1739817071124,-668.06342783,0.00014602,2]
[353407764,1739817071585,-316.5742938,0.0001,2]
[353407765,1739817071595,-14907.87009063,0.0001316,2]
[353407766,1739817071605,-500.0,0.00014027,2]
[353407767,1739817071615,-500.0,0.00014109,2]
[353407768,1739817071625,-500.0,0.00014191,2]
[353407769,1739817071634,-894.99,0.00014273,2]
[353407770,1739817071644,-500.0,0.00014273,2]
[353407771,1739817071653,-894.99,0.00014356,2]
[353407772,1739817071712,-500.0,0.00014356,2]
[353407773,1739817071722,-894.99,0.00014438,2]
[353407774,1739817071732,-500.0,0.00014438,2]
[353407775,1739817071741,-894.99,0.0001452,2]
[353407776,1739817071751,-500.0,0.0001452,2]
[353407777,1739817071761,-246.03657217,0.00014602,2]
[353407778,1739817071770,-854.97,0.00014602,2]
[353407779,1739817071780,-1540.6,0.00014602,2]
[353407780,1739817071790,-705.63,0.00014602,2]
[353407781,1739817071800,-917.85,0.00014602,2]
[353407782,1739817071811,-769.56,0.00014602,2]
[353407783,1739817071828,-983.72,0.00014602,2]
[353407784,1739817071839,-1445.12,0.00014602,2]
[353407785,1739817071848,-779.26,0.00014602,2]
[353407786,1739817071859,-564.39,0.00014602,2]
[353407787,1739817071868,-626.04,0.00014602,2]
[353407788,1739817071879,-1013.2,0.00014602,2]
[353407789,1739817071889,-500.0,0.00014602,2]
[353407790,1739817071900,-2061.01,0.00014602,2]
[353407791,1739817071909,-856.02,0.00014602,2]
[353407792,1739817071919,-500.0,0.00014602,2]
[353407793,1739817071929,-626.76,0.00014602,2]
[353407794,1739817071939,-874.57,0.00014602,2]
[353407795,1739817071949,-957.74,0.00014602,2]
[353407796,1739817071961,-500.0,0.00014602,2]
[353407797,1739817071971,-2399.52,0.00014602,2]
[353407798,1739817071981,-932.0,0.00014602,2]
[353407799,1739817071990,-1149.24,0.00014602,2]
[353407800,1739817072000,-500.0,0.00014602,2]
[353407801,1739817072010,-500.0,0.00014602,2]
[353407802,1739817072020,-729.63,0.00014602,2]
[353407803,1739817072030,-1026.51,0.00014602,2]
[353407804,1739817072039,-593.41,0.00014602,2]
[353407805,1739817072049,-1215.29,0.00014602,2]
[353407806,1739817072065,-646.83,0.00014602,2]
[353407807,1739817072075,-538.83,0.00014602,2]
[353407808,1739817072085,-902.35,0.00014602,2]
[353407809,1739817072096,-644.92,0.00014602,2]
[353407810,1739817072106,-1255.58,0.00014602,2]
[353407811,1739817072115,-500.0,0.00014602,2]
[353407812,1739817072124,-1054.84,0.00014602,2]
[353407813,1739817072137,-737.27,0.00014602,2]
[353407814,1739817072148,-2118.94,0.00014602,2]
[353407815,1739817072157,-1255.01,0.00014602,2]
[353407816,1739817072167,-766.68,0.00014602,2]
[353407817,1739817072177,-500.0,0.00014602,2]
[353407818,1739817072187,-548.79,0.00014602,2]
[353407819,1739817072197,-500.0,0.00014602,2]
[353407820,1739817072209,-1306.56,0.00014602,2]
[353407821,1739817072219,-649.85,0.00014602,2]
[353407822,1739817072229,-817.66,0.00014602,2]
[353407823,1739817072239,-500.0,0.00014602,2]
[353407824,1739817072249,-894.99,0.00014602,2]
[353407825,1739817072258,-150.0,0.00014608,2]
[353407826,1739817072267,-150.0,0.00014611,2]
[353407827,1739817072277,-1000.0,0.00014613,2]